bitfinex/quotes_ETHUSD_20220309
["timestamp","ask_amount","ask_price","bid_price","bid_amount"]
[1646800090927,0.97789482,2718.1,2717.0,0.3691]
[1646800091374,0.00128968,2717.7,2717.2,1.84041]
[1646800091674,0.00128968,2717.7,2717.3,0.92026]
[1646800091874,0.00128968,2717.7,2717.3,1.73436]
[1646800092071,0.00128968,2717.7,2717.5,0.3691]
[1646800092273,0.00128968,2717.7,2717.6,4.31409997]
[1646800092672,0.00128968,2717.7,2717.6,1.8141]
[1646800092871,1.025774,2718.5,2717.6,0.445]
[1646800093090,1.025774,2718.5,2717.7,0.9201]
[1646800093475,1.025774,2718.5,2717.2,3.28541]
[1646800093672,4.725774,2718.5,2717.2,2.28541]
[1646800093872,4.725774,2718.5,2717.2,3.28541]
[1646800093873,0.93913845,2718.0,2717.2,3.28541]
[1646800094073,0.89042813,2718.0,2717.2,1.84041]
[1646800094275,0.89042813,2718.0,2716.8,3.7292]
[1646800094472,0.89042813,2718.0,2716.7,3.67998]
[1646800095315,4.0691,2718.5,2716.9,0.92038]
[1646800095316,1.0799126,2717.4,2716.9,0.92038]
[1646800095517,0.00107343,2717.7,2716.3,8.31198]
[1646800095719,0.55213469,2717.9,2716.5,3.5]
[1646800095918,0.55213469,2717.9,2716.6,3.0]
[1646800096120,0.55213469,2717.9,2716.5,3.945]
[1646800096318,0.55213469,2717.9,2716.5,0.445]
[1646800096520,7.8354,2718.4,2716.5,0.445]
[1646800096722,1.11603281,2717.6,2716.7,1.84067]
[1646800096921,8.39721345,2718.4,2716.7,1.84067]
[1646800097121,8.39721345,2718.4,2716.8,3.5]
[1646800097323,2.97801345,2718.4,2716.8,4.8691]
[1646800097722,2.97801345,2718.4,2716.8,4.5]
[1646800098124,2.97801345,2718.4,2716.9,0.3691]
[1646800098324,2.97801345,2718.4,2717.2,0.92027]
[1646800098564,0.00128646,2717.7,2717.2,0.92027]
[1646800099766,0.00128646,2717.6,2717.2,0.92027]
[1646800100966,0.87480169,2717.8,2717.2,0.92027]
[1646800101170,0.00128646,2717.5,2716.8,3.5]
[1646800101373,0.00128646,2717.5,2716.7,1.84067]
[1646800102066,0.1005,2718.3,2716.7,1.84067]
[1646800102067,1.19970353,2717.3,2716.7,1.84067]
[1646800102337,0.00128646,2717.2,2716.7,1.84067]
[1646800102524,0.00128646,2717.2,2716.3,5.73188]
[1646800102727,0.00128646,2717.2,2716.3,2.76088]
[1646800103327,0.00128646,2717.2,2716.2,0.92056]
[1646800103328,1.12827777,2716.4,2716.2,0.92056]
[1646800103729,1.12827777,2716.4,2715.9,0.51571398]
[1646800104531,0.00106313,2716.3,2715.9,0.51571398]
[1646800104732,0.00106313,2716.3,2715.9,1.43641398]
[1646800105531,1.12827777,2716.4,2715.9,1.43641398]
[1646800105733,0.00106313,2716.2,2715.9,1.43641398]
[1646800106563,1.12827777,2716.4,2715.9,1.43641398]
[1646800106758,1.12827777,2716.4,2715.9,0.51571398]
[1646800106959,3.7,2716.5,2715.9,0.51571398]
[1646800107165,0.00128643,2716.2,2715.9,0.51571398]
[1646800107567,2.09421289,2716.5,2715.9,0.51571398]
[1646800107972,2.09421289,2716.5,2716.3,0.92049]
[1646800108367,1.91017382,2716.5,2716.3,0.92049]
[1646800108967,1.91017382,2716.5,2716.1,0.92065]
[1646800109171,1.91017382,2716.5,2716.2,1.1567919]
[1646800110111,1.91017382,2716.5,2716.1,0.91657261]
[1646800110314,1.91017382,2716.5,2715.9,0.51571398]
[1646800111517,5.5,2716.4,2715.2,7.32685]
[1646800111720,5.5,2716.4,2715.3,2.07857022]
[1646800111721,0.1005,2716.3,2715.3,2.07857022]
[1646800111916,0.1005,2716.3,2715.3,0.92092]
[1646800112513,1.07715667,2715.6,2715.4,1.1581154]
[1646800112716,3.6005,2716.3,2715.3,0.92092]
[1646800112915,0.1005,2716.3,2715.4,1.15802712]
[1646800113971,0.1005,2716.3,2715.6,0.9208]
[1646800114169,1.91017382,2716.5,2715.7,1.15810826]
[1646800114868,1.22833386,2716.1,2715.7,1.15810826]
[1646800115170,1.22833386,2716.1,2715.5,0.92083]
[1646800115370,1.22833386,2716.1,2715.6,1.15828101]
[1646800115871,1.22833386,2716.1,2714.9,3.63953]
[1646800115872,3.5,2716.0,2714.9,3.63953]
[1646800116072,3.5,2716.0,2715.0,1.15854899]
[1646800116273,0.98927966,2715.3,2715.0,1.15854899]
[1646800116874,0.98927966,2715.3,2714.9,1.8419]
[1646800117073,0.98927966,2715.3,2714.6,0.92113]
[1646800117314,0.98927966,2715.3,2714.7,1.15955657]
[1646800118923,0.98927966,2715.3,2714.8,1.15955657]
[1646800119123,0.1005,2715.6,2714.8,0.00712186]
[1646800119921,0.1005,2715.6,2714.4,0.00893168]
[1646800120123,0.1005,2715.6,2714.5,1.160587]
[1646800120323,3.6005,2715.6,2714.8,0.00688217]
[1646800120524,0.1005,2715.6,2714.8,0.00688217]
[1646800121176,1.02560723,2715.2,2714.4,0.00893168]
[1646800121375,1.02560723,2715.2,2714.5,1.16439244]
[1646800121574,1.02560723,2715.2,2714.8,0.00688217]
[1646800122376,1.02560723,2715.2,2714.9,1.16441948]
[1646800122577,1.02560723,2715.2,2714.4,1.85114168]
[1646800122777,1.02560723,2715.2,2714.8,0.00688214]
[1646800123377,1.02560723,2715.2,2714.9,1.1703537]
[1646800123578,0.1005,2715.3,2714.9,1.1703537]
[1646800123880,0.1005,2715.7,2715.0,1.1703537]
[1646800124079,0.1005,2716.0,2715.1,1.1703537]
[1646800124279,3.6005,2716.1,2714.9,1.1703537]
[1646800124480,3.6005,2716.1,2715.0,1.14894023]
[1646800124481,11.28,2716.0,2715.0,1.14894023]
[1646800124682,11.28,2716.0,2714.0,4.128498]
[1646800124683,3.7,2715.2,2714.1,0.66483596]
[1646800124917,3.7,2715.2,2714.2,1.14970942]
[1646800125320,3.7,2715.2,2714.8,0.0069929]
[1646800125920,0.1005,2715.1,2714.2,0.02797736]
[1646800126120,0.1005,2715.1,2714.3,1.14984755]
[1646800126121,3.6005,2715.1,2714.3,1.14984755]
[1646800126320,3.6005,2715.1,2714.4,1.14984755]
[1646800126521,3.6005,2715.1,2714.1,0.01786336]
[1646800126720,3.6005,2715.1,2714.2,1.14971792]
[1646800127226,1.18751944,2714.4,2714.2,1.16758128]
[1646800127424,1.18751944,2714.4,2714.3,1.14971792]
[1646800127625,3.18112271,2715.1,2714.3,1.14971792]
[1646800127824,3.18112271,2715.1,2714.2,0.01786336]
[1646800128323,1.08871303,2714.3,2714.2,0.01786336]
[1646800128769,10.31122271,2715.1,2714.2,0.01786336]
[1646800129169,10.31122271,2715.1,2714.3,1.119716]
[1646800129370,3.18112271,2715.1,2714.3,1.119716]
[1646800129573,3.7,2715.2,2714.3,1.119716]
[1646800129971,1.00688425,2714.7,2714.3,1.119716]
[1646800130171,1.00688425,2714.7,2714.3,1.13757936]
[1646800130373,1.00688425,2714.7,2714.4,1.119716]
[1646800130972,1.00688425,2714.7,2714.3,0.01786336]
[1646800131577,1.00688425,2714.7,2714.4,1.12829691]
[1646800132320,1.00688425,2714.7,2714.4,1.14616027]
[1646800132518,1.00825147,2714.7,2714.4,0.01786336]
[1646800133325,1.00688425,2714.7,2714.4,0.01786336]
[1646800133724,1.00825147,2714.7,2714.4,0.01786336]
[1646800134327,9.0,2714.6,2713.9,0.03005666]
[1646800134526,0.445,2714.5,2713.9,0.03005666]
[1646800134726,0.88878858,2714.5,2714.1,0.00712365]
[1646800134930,0.745,2714.5,2714.1,0.00712365]
[1646800135126,0.14378858,2714.4,2714.1,0.00712365]
[1646800135332,0.58878858,2714.4,2714.1,0.00712365]
[1646800135530,0.00136722,2714.7,2714.1,0.00712365]
[1646800136366,3.5,2715.1,2713.9,0.03005666]
[1646800136572,3.945,2715.1,2713.9,0.03005666]
[1646800136771,4.51057376,2715.1,2713.9,0.03005666]
[1646800136973,3.945,2715.1,2713.9,0.03005666]
[1646800137171,11.28,2714.9,2713.9,0.03005666]
[1646800137373,11.28,2714.9,2714.0,0.00623965]
[1646800137374,3.51254622,2714.8,2714.0,0.00623965]
[1646800138073,3.95754622,2714.8,2714.0,0.00623965]
[1646800138272,3.95754622,2714.8,2713.9,0.03005666]
[1646800138672,1.13406583,2714.4,2714.0,0.0066499]
[1646800138872,3.5,2714.3,2714.0,0.0066499]
[1646800139072,1.13406583,2714.4,2714.0,0.0066499]
[1646800139272,3.5,2714.3,2714.0,4.99e-05]
[1646800139671,1.43406583,2714.4,2714.0,4.99e-05]
[1646800139916,0.00138499,2714.3,2714.0,0.00664986]
[1646800140718,1.57906583,2714.4,2713.9,0.03005666]
[1646800142118,1.57906583,2714.4,2713.4,0.03115772]
[1646800142420,5.5,2714.2,2713.4,0.03115772]
[1646800142621,5.945,2714.2,2713.4,0.03115772]
[1646800144273,1.8435882,2714.6,2713.4,3.53115772]
[1646800144476,0.00140139,2714.3,2713.8,0.00712442]
[1646800145372,1.16172898,2714.2,2713.4,0.03115772]
[1646800145574,20.7787,2714.9,2713.4,0.03115772]
[1646800145575,9.4987,2714.9,2713.4,0.03115772]
[1646800145772,0.00140147,2714.3,2713.9,0.00712418]
[1646800145973,0.00140147,2714.3,2714.0,1.10451626]
[1646800147074,0.00140147,2714.3,2713.9,0.0071242]
[1646800147075,0.00140152,2714.3,2713.9,0.0071242]
[1646800147719,0.13819997,2715.1,2714.7,0.48377448]
[1646800147917,0.99651252,2715.0,2714.7,0.48377448]
[1646800148322,4.62151,2715.2,2714.7,0.48377448]
[1646800148323,3.7,2715.2,2714.7,0.48377448]
[1646800148524,4.26599811,2715.2,2714.7,0.48377448]
[1646800148825,3.7,2715.2,2714.8,5.3990763]
[1646800149024,0.2,2715.3,2715.2,0.3691]
[1646800149223,0.01242922,2715.8,2715.4,5.8691]
[1646800149423,0.01242922,2715.8,2715.6,1.15880815]
[1646800149622,0.16963709,2716.9,2715.7,0.3691]
[1646800149824,0.16963709,2716.9,2715.8,3.8691]
[1646800150023,0.16963709,2716.9,2715.8,4.3141]
[1646800150226,0.16963709,2716.9,2715.8,5.3141]
[1646800150422,0.16963709,2716.9,2716.0,0.9204857]
[1646800150625,0.98853081,2716.4,2716.0,1.34094]
[1646800150824,0.98853081,2716.4,2715.3,2.76154]
[1646800151286,0.98853081,2716.4,2715.1,1.0]
[1646800151287,0.98853081,2716.4,2715.2,3.5]
[1646800151487,0.98853081,2716.4,2715.1,0.9208354]
[1646800151687,0.05,2716.8,2715.3,0.3691]
[1646800151890,0.34870119,2716.7,2715.4,4.7899]
[1646800152189,0.34870119,2716.7,2715.4,0.9208]
[1646800152391,4.76962119,2716.7,2714.8,3.0440943]
[1646800152591,0.34870119,2716.6,2714.9,1.11590002]
[1646800153191,0.00139802,2716.2,2714.9,1.11590002]
[1646800153392,1.00723915,2715.4,2714.9,1.11590002]
[1646800153594,0.00139802,2716.2,2714.9,1.11590002]
[1646800153894,0.00139802,2716.2,2715.1,0.3691]
[1646800154096,0.34354994,2716.5,2715.3,0.3691]
[1646800154592,1.21012686,2715.9,2715.0,1.84297379]
[1646800154818,1.21012686,2715.9,2715.1,1.49147486]
[1646800155020,1.21012686,2715.9,2715.3,0.3691]
[1646800155021,3.2,2715.5,2715.3,0.3691]
[1646800155221,3.2,2715.5,2715.4,1.12237486]
[1646800155433,3.2,2715.5,2715.3,1.28994]
[1646800156228,3.2,2715.5,2715.4,1.12484411]
[1646800156427,3.2,2715.5,2715.3,0.92084]
[1646800156626,3.2,2715.5,2715.4,1.12486403]
[1646800156825,3.20124355,2715.5,2715.4,1.12486403]
[1646800157630,3.2,2715.5,2715.4,1.12486403]
[1646800161375,3.2,2715.5,2715.4,0.9208]
[1646800161576,3.2,2715.5,2715.4,2.04566403]
[1646800162177,0.00139802,2715.6,2715.5,5.8691]
[1646800162427,0.34297779,2716.7,2715.5,7.99396403]
[1646800162625,0.34297779,2716.7,2715.6,1.12486403]
[1646800163025,0.98111854,2716.3,2715.6,1.12486403]
[1646800163327,0.98111854,2716.3,2715.7,0.92072]
[1646800163524,0.98111854,2716.3,2715.8,1.12486403]
[1646800163923,0.00139802,2716.1,2715.8,1.12486403]
[1646800164724,0.00139802,2716.1,2715.3,0.1839]
[1646800164925,0.98111854,2716.3,2715.4,1.1467947]
[1646800165124,1.0881474,2715.7,2715.5,1.1467947]
[1646800165324,1.0881474,2715.7,2715.0,0.1841]
[1646800165525,1.0881474,2715.7,2715.1,1.14685079]
[1646800165727,1.0881474,2715.7,2715.2,1.14685079]
[1646800165929,1.0881474,2715.7,2714.8,0.92102]
[1646800166172,1.0881474,2715.7,2715.1,0.3691]
[1646800166373,0.00139802,2716.1,2715.3,0.9207532]
[1646800166571,0.00139802,2715.5,2715.4,1.51619405]
[1646800166774,0.00139802,2715.5,2715.4,1.70029405]
[1646800166974,0.00139802,2715.5,2715.4,5.20029405]
[1646800167272,0.00139802,2715.5,2715.4,2.70029405]
[1646800167774,0.4191,2716.8,2716.1,0.56245516]
[1646800167775,0.05,2716.8,2716.1,0.56245516]
[1646800167974,0.34255844,2716.7,2716.1,0.56245516]
[1646800168577,1.14232426,2716.4,2716.1,0.56245516]
[1646800170119,1.14348101,2716.4,2716.1,0.56245516]
[1646800171325,1.14351592,2716.4,2716.1,0.56245516]
[1646800172327,0.00119166,2716.4,2716.1,0.56245516]
[1646800173128,0.00119166,2716.4,2716.1,0.74635516]
[1646800173325,0.05,2716.8,2716.1,0.74635516]
[1646800173567,1.16421847,2716.7,2716.1,0.86245516]
[1646800173773,0.05,2716.4,2716.1,0.86245516]
[1646800173972,0.05,2716.4,2716.2,1.1397176]
[1646800174173,0.05,2716.4,2716.3,1.84088]
[1646800175274,0.05,2716.4,2716.3,2.7613234]
[1646800175672,0.05,2716.4,2716.3,3.7613234]
[1646800176074,0.05,2716.4,2716.3,4.0613234]
[1646800176276,0.05,2716.4,2716.3,2.7613234]
[1646800176473,0.05,2716.4,2716.1,0.56245516]
[1646800177559,5.5,2716.3,2715.5,2.9503]
[1646800177760,3.5,2716.2,2715.1,2.0257234]
[1646800177959,3.5,2716.2,2715.2,1.10775129]
[1646800178159,3.55132395,2716.4,2715.2,1.10775129]
[1646800178363,0.05132395,2716.4,2715.2,1.10775129]
[1646800178560,0.96800959,2715.9,2715.2,1.10775129]
[1646800178769,0.05132395,2716.4,2715.3,1.3658048]
[1646800178968,0.05132395,2716.4,2715.6,1.841207]
[1646800178969,0.00139802,2715.8,2715.6,1.841207]
[1646800179164,0.00139802,2715.8,2715.7,1.10775129]
[1646800179768,1.15919371,2716.4,2715.7,2.49651694]
[1646800179967,1.15919371,2716.4,2715.8,1.10775129]
[1646800180168,0.00139802,2715.9,2715.8,1.10775129]
[1646800180368,0.00139802,2715.9,2715.8,1.47685129]
[1646800180569,0.05,2716.4,2715.9,5.5]
[1646800180767,0.05,2716.4,2716.0,0.445]
[1646800181178,0.05,2716.4,2716.1,1.10775129]
[1646800181982,0.05,2716.4,2716.1,1.10173586]
[1646800182280,0.05,2716.8,2716.1,1.10173586]
[1646800182281,0.05,2716.8,2716.4,11.9491]
[1646800182479,3.5,2718.1,2716.5,0.445]
[1646800182878,3.5,2718.1,2716.5,0.745]
[1646800183179,3.5,2718.1,2716.6,1.09656633]
[1646800183180,0.89634002,2717.4,2716.6,1.09656633]
[1646800183379,0.89634002,2717.4,2716.6,0.445]
[1646800183981,0.89634002,2717.4,2716.8,0.9201]
[1646800184185,0.54337308,2718.2,2716.8,0.9201]
[1646800184186,3.67427308,2718.2,2716.8,0.9201]
[1646800184381,3.67427308,2718.2,2716.9,0.3]
[1646800184830,3.62427308,2718.2,2716.8,0.8141]
[1646800185019,0.00124146,2717.2,2716.9,0.92017]
[1646800185218,0.00124146,2717.2,2717.1,1.8401749]
[1646800185821,3.62427308,2718.2,2717.1,1.8401749]
[1646800186021,0.12427308,2718.2,2717.1,1.8401749]
[1646800186221,0.00128097,2717.3,2717.1,1.8401749]
[1646800186422,0.00128097,2717.3,2717.1,0.92017]
[1646800186623,0.00128097,2717.3,2717.0,2.84035]
[1646800186828,0.00128097,2717.3,2717.0,1.84035]
[1646800187022,0.99863941,2717.4,2717.0,1.84035]
[1646800187825,3.5,2718.1,2717.4,0.54676003]
[1646800188026,2.59587308,2718.2,2717.4,0.54676003]
[1646800188225,0.2,2718.3,2717.4,0.54676003]
[1646800189770,0.00139452,2718.0,2717.4,0.54676003]
[1646800190070,0.00139452,2718.0,2717.4,1.46689003]
[1646800190271,0.00139452,2718.0,2717.4,0.54676003]
[1646800190471,1.20403639,2717.5,2717.4,0.54676003]
[1646800191272,4.0,2717.4,2717.0,1.84035]
[1646800191473,4.0,2717.4,2716.7,2.9291]
[1646800191771,4.0,2717.4,2716.2,1.239]
[1646800191975,4.0,2717.4,2716.1,1.84097]
[1646800192822,1.15585683,2716.7,2716.1,2.14097]
[1646800193223,1.15585683,2716.7,2716.3,0.9204896]
[1646800193422,1.15585683,2716.7,2716.1,2.14097]
[1646800193423,1.15585683,2716.7,2716.1,1.84097]
[1646800193623,1.15585683,2716.7,2716.0,0.92048]
[1646800193827,1.15585683,2716.7,2715.9,2.8843]
[1646800194024,1.15585683,2716.7,2715.9,3.54053177]
[1646800194322,1.15585683,2716.7,2716.0,0.92061]
[1646800194527,0.00139452,2716.5,2716.0,0.92061]
[1646800194723,0.00139452,2716.5,2716.0,1.57684177]
[1646800194925,0.00139452,2716.5,2716.3,1.84081]
[1646800195523,15.767,2717.6,2716.3,2.14081]
[1646800195722,0.00139452,2716.5,2716.3,2.14081]
[1646800195923,0.00139452,2716.5,2716.3,3.9815659]
[1646800196374,0.00139452,2716.5,2716.3,4.9815659]
[1646800196972,0.87620236,2716.7,2716.3,4.9815659]
[1646800197175,0.00139452,2716.5,2716.3,4.9815659]
[1646800198373,0.00139452,2716.5,2716.3,1.84081]
[1646800198574,0.00139452,2716.5,2715.9,2.49734177]
[1646800198775,0.00139452,2716.5,2716.1,0.92055]
[1646800199187,0.00139452,2716.5,2716.1,1.57678177]
[1646800199377,0.00139452,2716.5,2716.1,0.92055]
[1646800199576,0.87620236,2716.7,2716.1,0.92055]
[1646800199577,0.00139452,2716.3,2716.1,0.92055]
[1646800199831,0.00139452,2716.3,2716.1,1.22055]
[1646800200031,0.00139452,2716.3,2716.1,1.87678177]
[1646800200232,0.00139452,2716.3,2716.1,2.79724457]
[1646800200631,0.87620236,2716.7,2716.1,3.1410128]
[1646800200632,0.80260336,2716.7,2716.1,3.1410128]
[1646800200833,0.73279458,2716.7,2716.1,2.79724457]
[1646800201131,0.73279458,2716.7,2716.1,3.79724457]
[1646800201132,0.48279458,2716.7,2716.1,3.79724457]
[1646800201332,14.4215,2717.6,2716.1,3.13619126]
[1646800201535,13.5009,2717.6,2716.4,0.92048]
[1646800201736,9.9686,2718.2,2716.5,3.945]
[1646800201935,9.9686,2718.2,2716.9,0.9202752]
[1646800202135,9.9686,2718.2,2717.0,1.58335897]
[1646800202136,0.33120022,2718.1,2717.0,1.58335897]
[1646800202337,9.9686,2718.2,2717.1,1.58335897]
[1646800202534,1.08781031,2718.0,2717.2,1.13835897]
[1646800202938,1.08781031,2718.0,2717.2,2.05846897]
[1646800203136,0.2,2718.3,2717.4,4.5]
[1646800203336,0.2,2718.3,2717.5,5.05]
[1646800203588,0.2,2718.3,2717.7,1.4741]
[1646800203784,0.2,2718.3,2717.9,1.4741]
[1646800203990,0.2,2718.3,2718.2,2.02483]
[1646800204187,0.2,2718.3,2718.2,3.16318897]
[1646800204388,1.3038428,2718.3,2718.2,1.105]
[1646800205386,1.3038428,2718.3,2717.9,1.105]
[1646800205588,0.2,2718.3,2718.1,1.105]
[1646800206492,0.2,2718.3,2718.2,1.105]
[1646800206690,0.20139164,2718.3,2718.2,1.105]
[1646800207522,0.2,2718.3,2718.2,1.105]
[1646800207923,9.6758,2719.3,2718.6,1.105]
[1646800208123,0.33425074,2719.2,2718.6,1.105]
[1646800208323,5.5,2719.0,2717.2,6.2712]
[1646800208523,0.34723212,2718.9,2717.5,1.1317031]
[1646800208725,1.04677208,2717.9,2717.5,1.1317031]
[1646800209124,2.2547993,2717.7,2717.5,1.1317031]
[1646800209323,4.5095986,2717.7,2717.5,1.1317031]
[1646800209525,4.5095986,2717.7,2717.3,0.1839]
[1646800209724,4.5095986,2717.7,2716.9,0.1839]
[1646800209924,4.5095986,2717.7,2717.0,1.1301116]
[1646800210732,0.00123913,2717.6,2717.0,1.1301116]
[1646800210929,0.00123913,2717.6,2716.7,0.1839]
[1646800211199,0.00123913,2717.6,2716.8,1.16225385]
[1646800211391,0.00123913,2717.6,2716.3,1.189]
[1646800211392,0.32737436,2717.6,2716.3,1.189]
[1646800211594,0.32737436,2717.6,2716.4,4.64073207]
[1646800211595,0.92072,2717.3,2716.4,4.64073207]
[1646800211794,0.92069,2717.4,2716.5,1.14073207]
[1646800211795,0.00123913,2717.4,2716.5,1.14073207]
[1646800212194,0.00123913,2717.4,2716.6,1.32473207]
[1646800212393,0.00123913,2717.4,2716.7,1.14073207]
[1646800212594,0.9215946,2717.3,2716.8,1.14073207]
[1646800212798,0.9215946,2717.3,2716.9,1.14073207]
[1646800212995,0.9215946,2717.3,2717.0,1.14073207]
[1646800213196,0.9215946,2717.3,2717.1,1.14073207]
[1646800213395,0.9215946,2717.3,2716.3,1.57674177]
[1646800213597,0.9215946,2717.3,2716.4,1.14735834]
[1646800213797,0.9215946,2717.3,2716.5,1.14735834]
[1646800213798,13.5673546,2717.3,2716.5,1.14735834]
[1646800214000,0.32109723,2717.2,2715.6,4.34013177]
[1646800214196,0.32109723,2717.2,2715.7,1.14849326]
[1646800214397,11.28,2717.0,2715.8,1.14849326]
[1646800214598,4.5095986,2716.4,2715.8,1.14849326]
[1646800214819,1.1942672,2715.8,2715.6,0.1839]
[1646800215020,1.1942672,2715.8,2715.7,1.14882624]
[1646800215424,1.1942672,2715.8,2715.3,1.14882624]
[1646800215629,1.1942672,2715.8,2715.4,1.14882624]
[1646800215827,1.1942672,2715.8,2715.2,1.14882624]
[1646800216026,1.5,2715.7,2715.3,2.624e-05]
[1646800216227,5.5,2715.6,2714.7,0.48377448]
[1646800217226,0.91487577,2714.9,2714.7,0.48377448]
[1646800218228,5.5,2715.6,2714.7,0.48377448]
[1646800218429,1.945,2715.7,2714.7,0.48377448]
[1646800218430,1.5,2715.7,2714.7,0.48377448]
[1646800219273,0.87199689,2714.9,2714.7,0.48377448]
[1646800219872,4.5095986,2714.8,2714.7,0.48377448]
[1646800220975,5.5,2714.7,2714.2,0.00660109]
[1646800221573,4.5095986,2714.8,2714.2,0.00660109]
[1646800221980,4.5095986,2714.8,2713.8,0.92137]
[1646800222426,4.5095986,2714.8,2713.9,0.9212916]
[1646800222629,4.5095986,2714.8,2713.9,0.84043177]
[1646800222825,4.5095986,2714.8,2713.8,0.65623177]
[1646800222826,1.10119792,2714.1,2713.8,0.65623177]
[1646800223024,4.5095986,2714.8,2714.1,0.08604253]
[1646800223829,1.20048376,2714.7,2714.1,0.08604253]
[1646800224231,1.20048376,2714.7,2713.6,0.02061992]
[1646800224431,0.9217,2714.5,2714.2,0.00704872]
[1646800225036,2.2547993,2714.4,2714.2,4.872e-05]
[1646800225232,5.0980828,2714.4,2714.2,4.872e-05]
[1646800225432,5.0980828,2714.4,2713.4,0.00415364]
[1646800225433,9.0,2714.3,2713.4,0.00415364]
[1646800225645,0.92185,2714.1,2713.7,0.02661499]
[1646800225837,3.945,2714.0,2713.7,1.499e-05]
[1646800226280,4.0884842,2714.0,2713.7,1.499e-05]
[1646800226482,5.30887845,2714.0,2713.7,1.499e-05]
[1646800226683,5.30887845,2714.0,2713.6,0.00415364]
[1646800226883,0.445,2714.0,2713.6,0.00415364]
[1646800227082,5.5,2714.3,2713.6,0.00415364]
[1646800227282,3.5,2714.2,2713.6,0.00415364]
[1646800227483,3.5,2714.2,2713.1,0.00830728]
[1646800227484,5.5,2714.1,2713.1,0.00830728]
[1646800227681,3.5,2714.0,2713.1,0.00830728]
[1646800228488,0.96880179,2713.2,2713.1,0.00830728]
[1646800228683,0.78457429,2713.2,2713.1,0.00830728]
[1646800229950,0.78457429,2713.2,2712.9,0.00672526]
[1646800229951,5.5,2713.1,2712.9,0.00672526]
[1646800230156,0.78457429,2713.2,2712.8,0.03171212]
[1646800230350,2.2547993,2713.0,2712.8,0.03171212]
[1646800230549,4.5095986,2713.0,2712.8,0.03171212]
[1646800232449,1.11469765,2712.9,2712.8,0.03171212]
[1646800233052,4.5095986,2713.0,2712.8,0.03171212]
[1646800234077,4.5095986,2713.0,2712.8,0.03875935]
[1646800235279,4.5095986,2713.0,2712.9,1.08725496]
[1646800235480,2.2547993,2713.0,2712.9,1.08725496]
[1646800235677,4.5095986,2713.0,2712.9,1.08725496]
[1646800235878,4.5095986,2713.0,2712.8,1.88202935]
[1646800236081,4.5095986,2713.0,2712.8,0.03875935]
[1646800236284,2.2547993,2713.0,2712.8,0.03171212]
[1646800236680,2.2547993,2712.9,2712.7,0.96853163]
[1646800236879,2.2547993,2712.9,2712.7,0.97182571]
[1646800237941,2.09600834,2713.0,2712.7,1.89353541]
[1646800238143,2.09600834,2713.0,2712.7,2.26263541]
[1646800238346,2.09600834,2713.0,2712.7,2.56263541]
[1646800238542,2.09600834,2713.0,2712.9,0.3691]
[1646800238747,0.03899453,2713.0,2712.9,1.35059377]
[1646800238950,0.03899453,2713.0,2712.9,1.2809493]
[1646800240348,5.7716,2714.4,2713.4,0.3691]
[1646800240547,5.7716,2714.4,2713.6,0.3691]
[1646800240747,2.46007146,2714.9,2713.6,0.3]
[1646800240748,1.1747,2714.7,2713.6,0.3]
[1646800241178,1.00063843,2714.2,2713.6,1.06650858]
[1646800241378,1.00063843,2714.2,2713.7,1.8426458]
[1646800241578,1.00063843,2714.2,2713.7,3.6852958]
[1646800241775,0.00151294,2714.3,2713.7,4.6852958]
[1646800242171,0.00151294,2714.3,2713.7,5.0543958]
[1646800242376,0.3691,2715.1,2713.7,4.6852958]
[1646800242576,6.96469997,2715.2,2713.8,3.5]
[1646800242777,0.00151294,2714.1,2714.0,0.92133]
[1646800242978,0.00151294,2714.1,2714.0,1.92804683]
[1646800243678,1.04804645,2714.9,2714.0,1.92804683]
[1646800243878,0.00151294,2714.2,2714.0,1.92804683]
[1646800244279,0.00151294,2714.2,2714.0,0.92133]
[1646800244477,0.00151294,2714.2,2713.7,4.6852958]
[1646800244680,0.00151294,2714.2,2713.5,5.3427524]
[1646800244932,0.0024,2714.7,2713.6,0.3191]
[1646800245131,0.00151294,2714.2,2713.6,0.3191]
[1646800245330,0.00151294,2714.2,2713.8,1.12364552]
[1646800246133,0.0024,2714.7,2713.8,1.12364552]
[1646800246333,0.00151294,2714.1,2713.8,1.12364552]
[1646800246535,0.00151294,2714.1,2713.3,3.9397643]
[1646800246536,0.00151294,2714.1,2713.4,0.3191]
[1646800246740,0.00151294,2714.1,2713.6,1.24057]
[1646800247535,0.00151294,2714.0,2713.8,1.07533195]
[1646800247735,0.00151294,2714.0,2713.6,0.3191]
[1646800247935,0.24853617,2714.5,2713.6,3.3191]
[1646800248237,0.24853617,2714.5,2713.6,1.3191]
[1646800248680,0.24853617,2714.5,2713.6,0.3191]
[1646800249284,0.24853617,2714.5,2713.7,1.21230251]
[1646800250082,0.00141524,2714.2,2713.7,1.21230251]
[1646800250282,0.00141524,2714.2,2713.7,2.13371781]
[1646800250881,0.24853617,2714.5,2713.7,0.9214153]
[1646800251284,0.00141524,2714.1,2713.7,0.9214153]
[1646800252085,0.24853617,2714.5,2713.7,0.9214153]
[1646800252323,0.24853617,2714.5,2713.7,1.97577414]
[1646800252324,0.00141524,2714.0,2713.7,1.97577414]
[1646800253328,0.0024,2714.5,2713.7,3.81843414]
[1646800253629,0.0024,2714.5,2714.0,0.9212529]
[1646800253828,0.0024,2714.5,2713.7,2.84266]
[1646800254030,0.0024,2714.5,2713.8,0.55167724]
[1646800254229,0.0024,2714.5,2713.4,10.2027741]
[1646800254437,0.0024,2714.5,2713.5,0.55256894]
[1646800254832,0.00136846,2714.3,2713.5,0.55256894]
[1646800255031,0.00136846,2714.3,2713.8,1.17269265]
[1646800255232,0.00136846,2714.3,2713.9,0.55256894]
[1646800255834,0.0024,2714.5,2713.9,0.55256894]
[1646800256076,0.00136846,2714.2,2713.9,0.55256894]
[1646800256485,0.00136846,2714.2,2713.9,2.39511894]
[1646800256784,0.00136846,2714.2,2714.0,0.55256894]
[1646800256989,0.00136846,2714.2,2713.9,0.55256894]
[1646800257285,0.00150916,2714.2,2714.0,0.55256894]
[1646800257486,0.00150916,2714.2,2714.1,0.55256894]
[1646800257886,0.00150916,2714.2,2713.9,0.55256894]
[1646800258086,0.0024,2714.5,2714.0,0.55256894]
[1646800258288,0.0024,2714.5,2714.1,0.55256894]
[1646800258494,1.01239879,2714.7,2714.2,0.55256894]
[1646800258495,0.00150916,2714.3,2714.2,0.55256894]
[1646800259292,0.92735387,2715.1,2713.9,0.55256894]